bitfinex-derivatives/quotes_ETHF0:USTF0_20250902
["timestamp","ask_amount","ask_price","bid_price","bid_amount"]
[1756837380578,0.79880122,4298.1,4298.0,0.4219]
[1756837380780,1.00410122,4298.1,4297.5,0.1248]
[1756837380989,0.58540122,4298.0,4297.6,0.245]
[1756837381181,1.00410122,4297.9,4297.8,0.2095]
[1756837381388,1.00410122,4297.9,4297.8,0.5092]
[1756837381591,1.00410122,4297.9,4297.8,0.7216]
[1756837382489,5.30950122,4297.9,4297.2,3.2078]
[1756837382789,0.7241,4297.3,4297.2,3.2078]
[1756837382992,1.30950122,4297.3,4296.7,0.2997]
[1756837383189,0.58540122,4297.2,4296.6,3.4528]
[1756837383495,0.79880122,4297.1,4297.0,0.7216]
[1756837383786,0.58540122,4297.1,4296.7,0.2997]
[1756837384186,0.3054,4297.0,4296.7,0.2997]
[1756837384389,0.3054,4297.0,4296.3,0.2997]
[1756837384590,0.58595769,4296.9,4296.3,0.2997]
[1756837384788,0.58595769,4296.8,4296.5,0.1248]
[1756837384988,0.58595769,4296.7,4296.6,0.2997]
[1756837385191,0.226,4297.6,4296.7,0.2997]
[1756837385389,0.58613824,4297.5,4296.8,0.5447]
[1756837385594,0.58613824,4297.4,4296.6,3.2078]
[1756837385796,0.58613824,4297.3,4296.7,0.2997]
[1756837385990,3.79393824,4297.3,4296.7,0.2997]
[1756837386190,0.89153824,4297.2,4296.7,0.2997]
[1756837386396,0.89153824,4297.1,4296.7,0.2997]
[1756837386597,0.58613824,4297.0,4296.7,0.2997]
[1756837387096,3.2078,4297.3,4296.7,0.2997]
[1756837387292,0.58633657,4297.2,4296.7,0.2997]
[1756837387492,0.58633657,4297.1,4296.6,3.2078]
[1756837387692,3.7582,4297.3,4296.7,0.2997]
[1756837387991,0.58630408,4297.2,4296.7,0.2997]
[1756837388191,0.58630408,4297.1,4296.7,0.2997]
[1756837388386,3.2078,4297.3,4297.0,0.1248]
[1756837388596,3.4528,4298.0,4297.1,3.2078]
[1756837388799,0.58627967,4297.9,4297.2,0.2997]
[1756837388996,0.58627967,4297.8,4297.2,0.2997]
[1756837389196,0.58627967,4297.7,4297.5,0.1248]
[1756837389392,3.2078,4298.0,4297.6,0.2997]
[1756837389597,3.5132,4298.0,4297.3,0.2997]
[1756837390097,3.2078,4298.0,4297.3,0.2997]
[1756837390401,3.2078,4298.5,4297.7,3.2078]
[1756837390593,0.3171256,4298.2,4297.7,3.2078]
[1756837390790,0.3171256,4298.2,4297.7,3.4528]
[1756837390986,0.3171256,4298.2,4297.8,0.2997]
[1756837391193,0.0117256,4298.2,4297.8,0.3042]
[1756837391697,0.0117256,4298.2,4298.1,0.3042]
[1756837392502,0.17,4298.9,4298.2,0.3042]
[1756837392796,0.58600151,4298.8,4298.6,0.3042]
[1756837392994,0.17,4298.9,4298.6,0.3042]
[1756837393186,0.17,4298.9,4298.4,0.245]
[1756837393387,0.17,4298.9,4298.5,0.3042]
[1756837393590,0.17,4298.9,4298.6,0.3042]
[1756837394201,0.17,4298.9,4298.4,0.245]
[1756837394496,0.17,4298.9,4298.3,0.3042]
[1756837395290,0.3083,4298.8,4298.2,3.512]
[1756837396087,0.5533,4298.8,4298.2,3.512]
[1756837396692,0.17,4298.9,4298.3,0.3042]
[1756837396892,0.245,4298.8,4298.3,0.3042]
[1756837397091,0.17,4298.9,4298.5,0.1167]
[1756837397289,0.17,4298.9,4298.6,0.3042]
[1756837397494,0.17,4298.9,4298.8,0.3042]
[1756837397691,3.2078,4300.1,4299.0,0.4209]
[1756837397890,3.2078,4300.1,4299.6,3.2078]
[1756837398097,0.3083,4300.0,4299.7,0.3042]
[1756837398290,0.3083,4300.0,4299.6,3.2078]
[1756837398494,0.3083,4300.0,4299.7,0.3042]
[1756837399105,0.3083,4300.0,4299.6,3.2078]
[1756837399304,3.2078,4300.1,4299.6,3.2078]
[1756837399507,3.2078,4300.1,4299.7,0.3042]
[1756837399703,3.2078,4300.1,4299.6,3.2078]
[1756837399910,3.2078,4300.1,4299.7,0.3042]
[1756837400703,3.2078,4300.6,4299.7,0.3042]
[1756837402111,3.2078,4300.6,4299.8,0.245]
[1756837402313,3.2078,4300.6,4300.0,0.1167]
[1756837402511,3.2078,4300.6,4300.1,0.3042]
[1756837402712,3.2078,4300.6,4300.3,0.3042]
[1756837402913,0.3083,4301.1,4300.3,0.3042]
[1756837403211,0.132,4301.5,4300.3,0.3042]
[1756837403414,0.3083,4301.6,4300.3,0.3042]
[1756837403607,0.5533,4301.6,4300.3,0.3042]
[1756837403809,3.324,4301.7,4300.8,0.3042]
[1756837404013,0.3083,4301.6,4300.9,0.245]
[1756837404208,0.3083,4301.6,4300.8,0.3042]
[1756837404413,0.3083,4301.6,4300.9,0.245]
[1756837404620,0.3083,4301.6,4300.8,0.3042]
[1756837404808,3.324,4301.7,4300.7,3.4528]
[1756837405211,3.324,4301.7,4300.7,3.757]
[1756837405407,0.3083,4301.6,4300.8,0.3042]
[1756837405615,0.1162,4301.7,4301.5,0.1167]
[1756837405810,3.5161,4302.7,4301.6,3.4528]
[1756837406110,3.5161,4302.7,4301.7,0.3042]
[1756837406916,0.1162,4302.6,4301.7,0.3042]
[1756837408116,0.1162,4302.6,4302.1,3.2078]
[1756837408316,0.1162,4302.6,4302.3,0.3042]
[1756837408618,0.3083,4302.5,4302.3,0.245]
[1756837408821,0.3083,4302.5,4302.3,0.5492]
[1756837409125,0.1162,4302.6,4302.3,0.245]
[1756837409317,0.1162,4302.6,4302.4,0.3042]
[1756837409620,0.1162,4302.6,4302.1,3.2078]
[1756837409823,0.4245,4302.6,4302.2,0.3042]
[1756837410015,0.3083,4302.5,4302.3,0.245]
[1756837410215,0.3083,4302.5,4302.4,0.3042]
[1756837410514,0.1162,4302.6,4302.3,0.245]
[1756837411014,0.3083,4302.5,4302.4,0.3042]
[1756837411716,0.3083,4302.4,4302.1,3.2078]
[1756837411912,0.3083,4302.5,4302.1,3.2078]
[1756837412118,0.1162,4302.6,4302.1,3.2078]
[1756837413025,0.3083,4302.5,4301.6,0.3042]
[1756837413319,3.2078,4302.2,4301.5,3.2078]
[1756837414325,0.245,4302.1,4301.5,3.2078]
[1756837415517,0.3083,4302.0,4301.5,3.512]
[1756837415724,0.3083,4302.1,4301.5,3.512]
[1756837415917,0.3083,4302.1,4301.5,3.2078]
[1756837416123,0.4245,4302.6,4301.6,0.3042]
[1756837416325,0.4245,4302.6,4301.8,0.3042]
[1756837418227,0.4245,4302.6,4301.5,3.2078]
[1756837418228,0.3083,4302.2,4301.5,3.2078]
[1756837418422,0.3083,4302.2,4301.6,0.3042]
[1756837418723,0.244,4302.3,4301.6,0.3042]
[1756837419325,3.2078,4302.3,4301.6,0.3042]
[1756837419723,0.3083,4302.5,4301.6,0.3042]
[1756837419919,3.5161,4302.5,4301.6,0.5492]
[1756837420123,0.3083,4302.4,4301.6,0.5492]
[1756837420523,0.3083,4302.4,4301.7,0.3042]
[1756837420724,0.3612,4302.6,4301.7,0.3042]
[1756837420925,0.245,4302.6,4301.7,0.3042]
[1756837421926,0.1162,4302.5,4301.7,0.3042]
[1756837423522,0.1162,4302.5,4301.8,0.2954]
[1756837425120,0.1162,4302.5,4301.6,0.2954]
[1756837425325,0.87557965,4302.4,4301.6,0.2954]
[1756837425528,0.58553199,4302.3,4301.6,0.2954]
[1756837425722,0.2901,4302.4,4301.6,0.2954]
[1756837425928,0.58551421,4302.3,4301.6,0.2954]
[1756837426127,0.58550786,4302.2,4301.6,0.2954]
[1756837426427,0.58609771,4302.1,4301.5,3.4518]
[1756837426627,0.2901,4302.2,4301.6,0.2954]
[1756837426831,0.58607679,4302.1,4301.6,0.2954]
[1756837427024,3.324,4302.5,4301.5,3.7472]
[1756837427230,0.2901,4302.3,4301.5,3.5032]
[1756837427431,0.2901,4302.1,4301.5,3.5032]
[1756837427626,0.58607962,4302.0,4301.5,3.2078]
[1756837427929,0.2901,4301.8,4301.1,0.2954]
[1756837428118,0.2901,4301.9,4301.1,0.2954]
[1756837428323,0.2901,4301.7,4301.1,0.2954]
[1756837428633,0.2901,4301.5,4301.0,0.2954]
[1756837429023,0.2901,4301.9,4301.0,0.2954]
[1756837429226,0.5868557,4301.8,4301.0,0.2954]
[1756837429420,0.5868557,4301.7,4301.0,0.2954]
[1756837429624,0.5868557,4301.6,4301.0,0.2954]
[1756837429825,0.5868557,4301.5,4301.0,0.2954]
[1756837430028,3.2078,4302.0,4301.0,0.2954]
[1756837430331,0.58720664,4301.9,4301.3,0.2954]
[1756837430520,3.4979,4302.0,4301.2,3.2078]
[1756837430521,0.2901,4301.7,4301.2,3.2078]
[1756837430724,0.2901,4301.5,4301.3,0.2954]
[1756837431125,0.2901,4301.5,4301.2,3.2078]
[1756837431320,0.58788606,4301.4,4301.3,0.2954]
[1756837432029,3.2078,4302.0,4301.3,0.2954]
[1756837432229,0.5880543,4301.9,4301.3,0.2954]
[1756837432431,0.5880543,4301.8,4301.3,0.245]
[1756837432735,3.2078,4302.0,4301.3,0.2954]
[1756837432736,0.2901,4301.6,4301.3,0.2954]
[1756837432927,0.2901,4301.4,4301.3,0.2954]
[1756837433128,0.8781543,4301.4,4301.3,0.2954]
[1756837433325,0.5880543,4301.4,4301.3,0.2954]
[1756837433531,0.5880543,4301.9,4301.3,0.2954]
[1756837435030,0.5880543,4301.9,4301.2,3.2078]
[1756837435235,0.2901,4301.7,4301.2,3.2078]
[1756837435435,0.2901,4301.5,4301.2,3.5032]
[1756837435736,0.2901,4301.3,4301.2,3.5032]
[1756837435931,0.8781543,4301.3,4301.2,3.5032]
[1756837436134,0.8781543,4301.3,4301.2,3.2078]
[1756837436334,0.2901,4301.2,4300.6,0.2954]
[1756837436536,0.2901,4301.0,4300.1,0.2954]
[1756837436736,0.8781543,4300.9,4300.1,0.2954]
[1756837437037,0.5880543,4300.8,4300.1,0.2954]
[1756837437543,0.2901,4300.7,4300.0,3.2078]
[1756837437836,0.5880543,4300.6,4300.0,3.2078]
[1756837438137,0.2901,4300.3,4299.6,0.2954]
[1756837438433,0.8781543,4300.2,4299.6,0.2954]
[1756837438740,0.8781543,4300.2,4299.5,3.2078]
[1756837438741,0.5880543,4300.1,4299.5,3.2078]
[1756837439040,0.8781543,4300.0,4299.6,0.2954]
[1756837439226,0.5880543,4299.9,4299.6,0.2954]
[1756837439429,3.2078,4300.4,4299.6,0.2954]
[1756837439639,0.58711857,4300.3,4299.6,0.2954]
[1756837439843,3.2078,4300.4,4299.6,0.2954]
[1756837439844,0.58711857,4300.2,4299.6,0.2954]
[1756837440135,0.58711857,4300.1,4299.6,0.2954]
[1756837440336,0.58711857,4300.0,4299.6,0.2954]
[1756837440534,3.2078,4300.4,4299.6,0.2954]
[1756837440738,0.58714775,4300.3,4299.6,0.2954]
[1756837440941,0.58714775,4300.2,4299.6,0.2954]
[1756837441140,0.58714775,4300.1,4299.5,3.3345]
[1756837441338,3.2078,4300.4,4299.5,3.3345]
[1756837441532,0.2901,4300.2,4299.6,0.2954]
[1756837441733,0.58682716,4300.1,4299.5,3.5032]
[1756837441929,0.58682716,4300.0,4299.5,3.5032]
[1756837442128,0.58672354,4299.9,4299.5,0.2954]
[1756837442339,0.2901,4299.7,4298.9,0.5394]
[1756837442539,0.58672354,4299.6,4298.9,0.5394]
[1756837442741,0.58630406,4299.5,4298.9,0.2954]
[1756837442947,0.2901,4299.5,4298.9,0.2954]
[1756837443936,0.244,4299.7,4298.3,3.2078]
[1756837443937,3.2078,4299.4,4298.3,3.2078]
[1756837444137,0.2901,4299.3,4298.4,0.2954]
[1756837446340,0.2901,4299.3,4298.5,0.1267]
[1756837446545,3.2078,4299.4,4298.6,0.5394]
[1756837446741,3.2078,4300.0,4298.8,3.2078]
[1756837446935,3.2078,4300.0,4299.0,0.1267]
[1756837447138,0.2901,4299.9,4299.1,0.244]
[1756837447441,0.2901,4299.9,4299.2,0.2954]
[1756837448041,3.2078,4300.0,4299.2,0.2954]
[1756837448340,0.244,4300.2,4299.2,0.2954]
[1756837448535,0.2901,4300.3,4299.4,0.2954]
[1756837448751,0.5341,4300.3,4299.4,0.2954]
[1756837450047,0.2901,4300.9,4299.9,3.2078]
[1756837450252,0.2901,4300.9,4300.1,0.2954]
[1756837451849,3.2078,4301.0,4299.8,0.539]
[1756837451850,3.3311,4301.0,4299.8,0.539]
[1756837452049,3.2078,4300.5,4299.8,0.295]
[1756837452244,0.2932,4300.4,4299.8,0.295]
[1756837452445,3.3311,4300.5,4299.3,3.5028]
[1756837452640,0.2932,4300.4,4299.4,0.295]
[1756837452848,3.2078,4300.5,4299.6,0.295]
[1756837453146,3.2078,4300.5,4299.7,0.244]
[1756837453351,3.2078,4300.5,4299.8,0.295]
[1756837453746,0.244,4300.8,4300.0,3.3322]
[1756837453952,0.244,4300.8,4300.1,0.295]
[1756837454157,0.2932,4300.9,4300.1,0.295]
[1756837454955,3.501,4300.2,4299.6,0.295]
[1756837455153,3.2078,4300.2,4299.6,0.295]
[1756837455348,0.2932,4300.7,4299.6,0.295]
[1756837455349,0.2932,4300.7,4300.1,3.2078]
[1756837455554,0.2932,4300.7,4300.2,0.295]
[1756837455948,0.2932,4300.7,4299.6,3.2078]
[1756837455949,0.2932,4300.7,4299.7,0.295]
[1756837456252,0.244,4300.9,4300.1,3.2078]
[1756837456545,3.2078,4301.1,4300.2,0.295]
[1756837456750,0.2932,4301.4,4300.6,3.2078]
[1756837456950,0.2932,4301.4,4300.7,0.295]
[1756837458354,3.2078,4301.6,4300.7,0.295]
[1756837459146,3.2078,4301.6,4300.9,0.295]
[1756837459346,3.2078,4301.6,4301.1,0.295]
[1756837459655,3.2078,4301.6,4301.0,0.244]
[1756837460058,3.2078,4301.6,4301.1,0.295]
[1756837460551,3.2078,4301.6,4301.0,0.244]
[1756837460857,3.2078,4301.6,4300.7,0.295]
[1756837460858,3.501,4301.6,4300.7,0.295]
[1756837462450,0.2932,4301.4,4300.6,3.5028]
[1756837462753,0.2932,4301.2,4300.6,3.5028]
[1756837463546,3.2078,4301.1,4300.1,3.5028]
[1756837464154,0.2932,4301.0,4300.1,3.5028]
[1756837464758,0.2932,4301.0,4300.2,0.295]
[1756837467051,0.35583,4301.0,4299.7,0.295]
[1756837467257,0.2932,4300.5,4299.7,0.295]
[1756837469069,0.2101,4299.8,4299.7,0.7074]
[1756837470563,3.4518,4300.6,4299.7,0.7074]
[1756837470756,0.2932,4300.5,4299.8,0.295]
[1756837471558,0.5033,4300.5,4300.4,0.2029]
[1756837471864,0.2101,4300.5,4300.4,0.7074]
[1756837472161,3.2078,4300.6,4300.4,0.4124]
[1756837472363,3.4179,4300.6,4300.5,0.295]
[1756837472558,3.4179,4300.6,4300.5,0.4979]
[1756837472559,3.9209,4300.6,4300.5,0.4979]
[1756837472762,3.9209,4300.6,4299.7,0.295]
[1756837472961,3.9209,4300.6,4299.9,0.295]
[1756837475263,0.244,4300.5,4299.9,0.295]
[1756837475467,3.501,4300.6,4299.9,0.295]
[1756837475661,0.244,4300.5,4299.9,0.295]
[1756837476161,0.2101,4300.0,4299.9,0.7074]
[1756837476763,0.7131,4300.0,4299.9,0.7074]
[1756837477571,0.2932,4299.9,4299.6,3.5028]
[1756837477865,0.2101,4299.7,4299.6,3.6202]
[1756837478265,0.2101,4299.7,4299.6,3.9152]
[1756837479063,0.7131,4299.7,4299.6,3.4107]
[1756837479664,0.7131,4299.7,4299.6,3.9152]
[1756837479965,0.7131,4299.7,4299.6,3.7057]
[1756837480165,0.7131,4299.7,4299.6,3.4107]
[1756837480961,0.4199,4299.7,4299.1,3.2078]
[1756837481153,0.2949,4299.6,4299.2,0.3158]
[1756837481354,0.2949,4299.6,4299.2,0.7301]
[1756837481560,0.5033,4299.6,4299.5,0.4143]
[1756837481756,0.5033,4299.6,4299.5,0.7301]
[1756837482355,0.2084,4299.6,4299.5,0.7301]
[1756837483370,0.7086,4299.6,4299.5,0.7301]
[1756837483666,0.4137,4299.3,4299.2,0.5229]
[1756837483867,0.7086,4299.3,4299.2,0.5229]
[1756837484069,0.7086,4299.3,4299.2,0.7301]
[1756837484557,0.7086,4299.3,4299.2,0.3158]
[1756837484762,0.4137,4299.3,4299.2,0.7301]
[1756837485167,0.7086,4299.3,4299.2,0.7301]
[1756837487064,0.4137,4299.3,4298.7,0.244]
[1756837487369,0.7086,4299.2,4299.1,0.5229]
[1756837487570,0.7086,4299.2,4299.1,0.7301]
[1756837487872,0.4137,4299.2,4299.1,0.7301]
[1756837488169,3.2078,4299.6,4299.5,0.4143]
[1756837488373,3.2078,4299.6,4299.5,0.7301]
[1756837488562,0.244,4300.0,4299.5,0.7301]
[1756837488768,0.4524,4300.1,4300.0,0.4143]
[1756837488962,0.4524,4300.1,4300.0,0.7301]
[1756837490262,0.6577,4300.1,4300.0,0.7301]
[1756837490466,0.9526,4300.1,4300.0,0.7301]
[1756837491169,1.53955489,4300.1,4300.0,0.7301]
[1756837491471,1.53955489,4300.1,4299.2,0.3158]
[1756837491770,0.9526,4300.1,4299.2,0.3158]
[1756837492765,0.9526,4300.1,4299.1,3.2078]
[1756837492766,0.9526,4300.1,4300.0,0.5229]
[1756837492967,1.53978898,4300.1,4300.0,0.5229]
[1756837493474,1.53978898,4300.1,4300.0,0.2071]
[1756837493774,0.2949,4300.0,4299.2,0.3158]
[1756837494372,0.2084,4299.3,4299.2,0.7301]
[1756837495369,0.7086,4299.3,4299.2,0.7301]
[1756837495676,0.2084,4298.7,4298.6,3.9379]
[1756837496372,0.7086,4298.7,4298.6,3.9379]
[1756837496675,0.7086,4298.7,4298.6,0.2071]
[1756837496874,0.4137,4298.7,4298.3,0.3158]
[1756837497177,0.7086,4298.4,4298.3,0.5229]
[1756837497670,0.2949,4298.3,4297.6,0.3158]
[1756837497871,0.244,4298.2,4297.6,0.4143]
[1756837498073,0.244,4298.2,4297.7,0.3158]
[1756837498273,0.6577,4298.2,4298.1,0.2071]
[1756837498576,0.9526,4298.2,4298.1,0.5229]
[1756837498775,0.7086,4298.2,4298.1,0.5229]
[1756837498976,0.9526,4298.2,4298.1,0.5229]
[1756837499166,0.7086,4298.2,4298.1,0.5229]
[1756837499372,0.9526,4298.2,4298.1,0.5229]
[1756837499568,0.9526,4298.2,4297.5,0.3158]
[1756837499975,0.9526,4298.2,4298.1,0.2071]
[1756837500171,0.6577,4298.2,4297.4,3.2078]
[1756837500388,0.7086,4297.4,4297.3,0.5229]
[1756837500678,0.4137,4297.4,4297.3,0.7301]
[1756837500877,0.2084,4297.4,4297.3,0.7301]
[1756837501573,0.7086,4297.4,4297.3,0.2071]
[1756837501982,3.2078,4297.9,4297.4,0.3158]
[1756837501983,0.244,4297.6,4297.4,0.3158]
[1756837502177,0.244,4297.6,4297.3,0.4143]
[1756837502178,0.2084,4297.5,4297.0,0.4395]
[1756837502380,0.4137,4297.5,4297.4,0.7301]
[1756837502783,0.7086,4297.5,4296.9,0.3158]
[1756837502982,0.7086,4297.5,4297.4,0.2071]
[1756837503170,0.7086,4297.5,4297.4,0.5229]
[1756837504483,0.4137,4297.5,4297.4,0.7301]
[1756837504682,0.2084,4297.5,4297.4,0.7301]
[1756837505091,3.9164,4297.9,4297.4,0.3158]
[1756837505387,3.9164,4297.9,4296.8,3.2078]
[1756837505388,3.6215,4297.9,4296.8,3.2078]
[1756837505581,3.9164,4297.9,4297.0,0.1237]
[1756837505782,3.9164,4297.9,4297.8,0.2071]
[1756837505984,3.9164,4297.9,4297.8,0.5229]
[1756837506380,3.9164,4297.9,4297.8,0.2071]
[1756837506575,3.9164,4297.9,4297.8,0.5229]
[1756837506984,3.9164,4297.9,4297.8,0.2071]
[1756837507184,3.9164,4297.9,4297.4,0.3158]
[1756837507388,0.2084,4297.0,4296.9,0.4143]
[1756837507579,0.2084,4297.0,4296.9,0.7301]
[1756837508181,0.157,4297.4,4297.0,0.3158]
[1756837508383,0.2084,4297.1,4297.0,0.7301]
[1756837509187,0.4519,4297.4,4297.0,0.7301]
[1756837509390,0.4519,4297.4,4297.0,0.4143]
[1756837509694,0.8656,4297.4,4297.3,0.7301]
[1756837509898,0.5707,4297.4,4296.8,3.2078]
[1756837510186,0.2084,4297.0,4296.9,0.7301]
[1756837510395,0.4137,4297.0,4296.9,0.7301]
[1756837511286,0.157,4297.4,4296.9,0.4143]
[1756837511492,0.3165,4297.3,4297.0,0.3065]
[1756837511692,0.3165,4297.3,4297.2,0.7209]
[1756837511693,0.5095,4297.3,4297.2,0.7209]
[1756837511886,0.193,4297.3,4297.2,0.7209]
[1756837512085,0.704,4297.3,4297.2,0.7209]
[1756837512599,0.3875,4297.3,4296.9,0.3065]
[1756837512802,0.704,4297.0,4296.9,0.5083]
[1756837513285,0.704,4297.0,4296.9,0.7209]
[1756837513492,0.3875,4297.0,4296.9,0.7209]
[1756837513893,0.704,4297.0,4296.9,0.2018]
[1756837514094,0.704,4297.0,4296.9,0.5083]
[1756837514798,0.704,4297.0,4296.1,3.2078]
[1756837515092,0.704,4297.0,4296.2,0.3065]
[1756837515287,0.193,4296.3,4296.2,0.7209]
[1756837515682,0.704,4296.3,4296.2,0.2018]
[1756837515884,0.704,4296.3,4295.7,0.3065]
[1756837516086,0.948,4296.3,4295.7,0.3065]
[1756837516686,0.948,4296.3,4296.2,0.5083]
[1756837516996,0.948,4296.3,4295.7,0.3065]
[1756837517587,0.948,4296.3,4296.2,0.2018]
[1756837518096,0.948,4296.3,4296.2,0.5083]
[1756837518296,0.948,4296.3,4296.2,0.2018]
[1756837519190,0.948,4296.3,4296.2,0.5083]
[1756837519994,3.2078,4296.6,4296.3,0.3065]
[1756837520186,3.2078,4297.1,4296.6,0.3065]
[1756837520390,3.2078,4297.1,4297.0,0.7209]
[1756837520391,3.5953,4297.1,4297.0,0.7209]
[1756837520593,3.2078,4297.1,4297.0,0.7209]
[1756837520887,3.4008,4297.1,4297.0,0.7209]
[1756837521093,3.2078,4297.1,4297.0,0.7209]
[1756837521295,3.2078,4297.1,4297.0,0.8445]
[1756837521895,3.2078,4297.1,4297.0,0.7209]
[1756837522097,3.2078,4297.1,4297.0,0.8445]
[1756837522496,0.244,4297.5,4297.1,0.3065]
[1756837522800,34.1758,4297.7,4297.6,0.7209]
[1756837523003,0.437,4297.7,4297.6,0.7209]
[1756837523792,0.948,4297.7,4297.6,0.7209]
[1756837524498,0.6315,4297.7,4297.6,0.7209]
[1756837524900,0.948,4297.7,4296.8,0.3065]
[1756837525104,4.1558,4297.7,4296.9,0.3065]
[1756837525998,0.2327,4297.6,4296.7,3.2078]
[1756837526196,0.704,4296.8,4296.7,0.2018]
[1756837526400,0.193,4296.8,4296.7,0.7209]
[1756837528001,3.2078,4297.7,4296.7,0.7209]
[1756837528208,0.193,4296.9,4296.8,0.7209]
[1756837529304,3.2078,4297.2,4297.1,0.4144]
[1756837529504,3.2078,4297.2,4297.1,0.7209]
[1756837529904,0.3165,4297.8,4297.1,0.7209]
[1756837530104,0.97373903,4297.7,4297.6,0.7209]
[1756837530406,0.3875,4297.1,4297.0,0.5083]
[1756837530609,0.704,4297.1,4297.0,0.5083]
[1756837530907,0.244,4297.8,4297.0,0.5083]
[1756837530908,0.3165,4297.6,4297.1,0.3065]
[1756837531108,0.77925775,4297.5,4297.4,0.7209]
[1756837531806,0.58625775,4297.5,4297.4,0.7209]
[1756837532006,0.77925775,4297.5,4297.4,0.7209]
[1756837532306,0.77925775,4297.5,4296.8,0.7209]
[1756837532307,0.193,4296.9,4296.8,0.7209]
[1756837532802,0.704,4296.9,4296.8,0.7209]
[1756837533009,0.3165,4296.8,4296.2,3.2078]
[1756837533205,0.704,4296.3,4296.2,3.4096]
[1756837534006,0.704,4296.3,4296.2,3.2078]
[1756837534399,0.704,4296.3,4295.7,0.3065]
[1756837534598,0.3165,4296.8,4296.2,0.4144]
[1756837534801,0.77913456,4296.7,4296.6,0.7209]
[1756837535001,0.193,4296.7,4296.6,0.7209]
[1756837535205,0.3165,4296.8,4296.2,3.4096]
[1756837535402,0.193,4296.3,4296.2,3.9287]
[1756837535598,0.704,4296.3,4295.4,3.2078]
[1756837535798,0.704,4296.3,4295.5,0.3065]
[1756837536004,0.244,4296.2,4295.5,0.3065]
[1756837536200,0.3165,4296.1,4295.5,0.3065]
[1756837536405,0.193,4295.6,4295.5,0.7209]
[1756837536606,0.437,4296.2,4296.1,0.2018]
[1756837536805,0.244,4296.6,4296.1,0.4144]
[1756837537009,0.77908815,4296.5,4296.4,0.7209]
[1756837537402,3.4518,4296.7,4296.4,0.7209]
[1756837537607,3.4518,4296.7,4296.0,0.1236]
[1756837537809,3.4518,4296.7,4296.6,0.7209]
[1756837538010,3.4518,4296.7,4296.6,0.3065]
[1756837538411,3.2078,4296.7,4296.6,0.3065]
[1756837538814,3.5243,4296.7,4296.6,0.3065]
[1756837539320,0.3165,4296.7,4296.6,0.3065]
[1756837539817,0.3165,4296.7,4296.0,0.3065]
[1756837540009,0.244,4296.6,4296.0,0.1236]
[1756837540512,0.244,4296.6,4295.9,3.2078]
[1756837540813,0.244,4296.6,4296.0,0.3065]
[1756837541414,0.6506,4296.6,4296.5,0.2018]
[1756837541612,0.6506,4296.6,4296.5,0.7207]
[1756837541809,0.437,4296.6,4296.5,0.7207]
[1756837542111,0.6506,4296.6,4296.5,0.2018]
[1756837542314,0.9533,4296.6,4296.0,0.3088]
[1756837546018,0.193,4296.6,4296.5,0.7262]
[1756837546718,3.2078,4296.7,4296.5,0.4174]
[1756837546921,3.2078,4296.7,4296.6,0.7262]
[1756837547514,0.4212,4296.2,4296.1,3.4151]
[1756837547722,0.2076,4296.2,4296.1,3.934]
[1756837548015,0.7239,4296.5,4296.4,0.2073]
[1756837548220,0.7239,4296.5,4296.4,0.5161]
[1756837548709,0.4212,4296.5,4296.1,3.5166]
[1756837548907,0.4212,4296.2,4296.1,3.5166]
[1756837549126,0.7239,4296.2,4295.6,0.3088]
[1756837549316,0.4212,4296.2,4295.5,3.2078]
[1756837549511,0.3688,4296.5,4295.2,0.5161]
[1756837549512,0.7239,4295.3,4295.2,0.5161]
[1756837549813,0.2076,4295.1,4295.0,3.4151]
[1756837550017,0.3027,4295.6,4295.0,3.6252]
[1756837550312,3.2078,4296.0,4295.1,0.3088]
[1756837550313,0.243,4295.5,4295.1,0.3088]
[1756837550623,0.243,4295.5,4295.2,0.3088]
[1756837550624,0.7239,4295.3,4295.2,0.3088]
[1756837550816,0.7239,4295.3,4295.2,0.5161]
[1756837551613,0.7239,4295.3,4294.5,3.3356]
[1756837551813,0.7239,4295.3,4294.6,0.3088]
[1756837552320,0.7239,4295.3,4294.7,0.3088]
[1756837554023,0.7239,4295.3,4295.2,0.2073]
[1756837554320,0.7239,4295.3,4295.2,0.5161]
[1756837555718,0.7239,4295.3,4295.2,0.2073]
[1756837555920,0.4212,4295.3,4294.5,3.2078]
[1756837556121,0.3027,4295.2,4294.6,0.3088]
[1756837556623,0.7239,4295.2,4295.1,0.5161]
[1756837557420,0.4212,4295.2,4295.1,0.7262]
[1756837557627,0.6642,4295.2,4295.1,0.7262]
[1756837558024,0.9669,4295.2,4295.1,0.5161]
[1756837558423,0.6642,4295.2,4294.5,3.2078]
[1756837558622,0.9669,4295.2,4295.1,0.2073]
[1756837559218,0.9669,4295.2,4294.5,3.2078]
[1756837559421,0.2076,4294.6,4294.5,3.934]
[1756837559928,0.7239,4295.1,4295.0,0.5161]
[1756837560421,0.4212,4295.1,4294.5,3.2078]
[1756837560723,0.2076,4294.6,4294.5,3.934]
[1756837561120,0.4212,4294.6,4294.5,3.934]
[1756837561315,0.7239,4294.6,4293.9,3.2078]
[1756837561518,0.2076,4293.7,4293.6,0.7262]
[1756837561726,3.2078,4294.3,4293.6,0.4174]
[1756837562023,3.6584,4294.3,4294.2,0.7262]